{"text_format":"3","workbook":"xlsx","n_sheets":1,"sheets":["Liste de prêt de bibliothèque"],"not_rendered":{"defined_names":4},"read":"whole","date_system":"1900"}

{"sheet":"Liste de prêt de bibliothèque","index":0,"n_rows":9,"n_cols":8,"rows_kept":9,"merged":[[0,1,0,4],[0,5,0,6]]}
[null,"Feuille Liste de prêt de bibliothèque",{"$nulls":3},"JOURS AVANT RETOUR : ",null,10]
["En retard","ÉTUDIANT","ADRESSE E-MAIL","TÉLÉPHONE","TITRE DU LIVRE","DATE D’EMPRUNT","DATE DE RETOUR","JOURS"]
[{"$f":"IFERROR(((Livres[[#This Row],[DATE D’EMPRUNT]]+DuréePrêt)<TODAY())*(LEN(Livres[[#This Row],[DATE DE RETOUR]])=0)*(LEN(Livres[[#This Row],[DATE D’EMPRUNT]])>0),0)","v":0},"Marie Méthot","xyz@example.com","01 23 45 67 89","Charlie et la chocolaterie",{"$f":"DATE(YEAR(TODAY()),1,14)","v":"2018-01-14"},{"$f":"DATE(YEAR(TODAY()),1,21)","v":"2018-01-21"},{"$f":"IFERROR(IF(Livres[[#This Row],[DATE DE RETOUR]]=\"\",IF(Livres[[#This Row],[DATE D’EMPRUNT]]<>\"\", TODAY()-Livres[[#This Row],[DATE D’EMPRUNT]],\"\"),Livres[[#This Row],[DATE DE RETOUR]]-Livres[[#This Row],[DATE D’EMPRUNT]]), \"\")","v":7}]
[{"$f":"IFERROR(((Livres[[#This Row],[DATE D’EMPRUNT]]+DuréePrêt)<TODAY())*(LEN(Livres[[#This Row],[DATE DE RETOUR]])=0)*(LEN(Livres[[#This Row],[DATE D’EMPRUNT]])>0),0)","v":0},"Christian Lacombe","xyz@example.com","01 23 45 67 88","Les malheurs de Sophie",{"$f":"DATE(YEAR(TODAY()),2,15)","v":"2018-02-15"},{"$f":"DATE(YEAR(TODAY()),2,18)","v":"2018-02-18"},{"$f":"IFERROR(IF(Livres[[#This Row],[DATE DE RETOUR]]=\"\",IF(Livres[[#This Row],[DATE D’EMPRUNT]]<>\"\", TODAY()-Livres[[#This Row],[DATE D’EMPRUNT]],\"\"),Livres[[#This Row],[DATE DE RETOUR]]-Livres[[#This Row],[DATE D’EMPRUNT]]), \"\")","v":3}]
[{"$f":"IFERROR(((Livres[[#This Row],[DATE D’EMPRUNT]]+DuréePrêt)<TODAY())*(LEN(Livres[[#This Row],[DATE DE RETOUR]])=0)*(LEN(Livres[[#This Row],[DATE D’EMPRUNT]])>0),0)","v":0},"Danielle Brasseur","xyz@example.com","01 23 45 67 87","Le Petit Nicolas",{"$f":"DATE(YEAR(TODAY()),2,17)","v":"2018-02-17"},{"$f":"DATE(YEAR(TODAY()),2,22)","v":"2018-02-22"},{"$f":"IFERROR(IF(Livres[[#This Row],[DATE DE RETOUR]]=\"\",IF(Livres[[#This Row],[DATE D’EMPRUNT]]<>\"\", TODAY()-Livres[[#This Row],[DATE D’EMPRUNT]],\"\"),Livres[[#This Row],[DATE DE RETOUR]]-Livres[[#This Row],[DATE D’EMPRUNT]]), \"\")","v":5}]
[{"$f":"IFERROR(((Livres[[#This Row],[DATE D’EMPRUNT]]+DuréePrêt)<TODAY())*(LEN(Livres[[#This Row],[DATE DE RETOUR]])=0)*(LEN(Livres[[#This Row],[DATE D’EMPRUNT]])>0),0)","v":0},"Jérôme Rivard","xyz@example.com","01 23 45 67 86","Harry Potter",{"$f":"DATE(YEAR(TODAY()),2,17)","v":"2018-02-17"},{"$f":"DATE(YEAR(TODAY()),2,25)","v":"2018-02-25"},{"$f":"IFERROR(IF(Livres[[#This Row],[DATE DE RETOUR]]=\"\",IF(Livres[[#This Row],[DATE D’EMPRUNT]]<>\"\", TODAY()-Livres[[#This Row],[DATE D’EMPRUNT]],\"\"),Livres[[#This Row],[DATE DE RETOUR]]-Livres[[#This Row],[DATE D’EMPRUNT]]), \"\")","v":8}]
[{"$f":"IFERROR(((Livres[[#This Row],[DATE D’EMPRUNT]]+DuréePrêt)<TODAY())*(LEN(Livres[[#This Row],[DATE DE RETOUR]])=0)*(LEN(Livres[[#This Row],[DATE D’EMPRUNT]])>0),0)","v":0},"Liane Cormier","xyz@example.com","01 23 45 67 85","À la croisée des mondes",{"$f":"DATE(YEAR(TODAY()),2,18)","v":"2018-02-18"},{"$f":"DATE(YEAR(TODAY()),2,28)","v":"2018-02-28"},{"$f":"IFERROR(IF(Livres[[#This Row],[DATE DE RETOUR]]=\"\",IF(Livres[[#This Row],[DATE D’EMPRUNT]]<>\"\", TODAY()-Livres[[#This Row],[DATE D’EMPRUNT]],\"\"),Livres[[#This Row],[DATE DE RETOUR]]-Livres[[#This Row],[DATE D’EMPRUNT]]), \"\")","v":10}]
[{"$f":"IFERROR(((Livres[[#This Row],[DATE D’EMPRUNT]]+DuréePrêt)<TODAY())*(LEN(Livres[[#This Row],[DATE DE RETOUR]])=0)*(LEN(Livres[[#This Row],[DATE D’EMPRUNT]])>0),0)","v":1},"Audrey Dumoulin","xyz@example.com","01 23 45 67 84","Le monde de Narnia",{"$f":"DATE(YEAR(TODAY()),1,23)","v":"2018-01-23"},null,{"$f":"IFERROR(IF(Livres[[#This Row],[DATE DE RETOUR]]=\"\",IF(Livres[[#This Row],[DATE D’EMPRUNT]]<>\"\", TODAY()-Livres[[#This Row],[DATE D’EMPRUNT]],\"\"),Livres[[#This Row],[DATE DE RETOUR]]-Livres[[#This Row],[DATE D’EMPRUNT]]), \"\")","v":162}]
[{"$f":"IFERROR(((Livres[[#This Row],[DATE D’EMPRUNT]]+DuréePrêt)<TODAY())*(LEN(Livres[[#This Row],[DATE DE RETOUR]])=0)*(LEN(Livres[[#This Row],[DATE D’EMPRUNT]])>0),0)","v":0},"Coralie Monjeau","xyz@example.com","01 23 45 67 83","Sacrées sorcières",{"$f":"TODAY()","v":"2018-07-04"},null,{"$f":"IFERROR(IF(Livres[[#This Row],[DATE DE RETOUR]]=\"\",IF(Livres[[#This Row],[DATE D’EMPRUNT]]<>\"\", TODAY()-Livres[[#This Row],[DATE D’EMPRUNT]],\"\"),Livres[[#This Row],[DATE DE RETOUR]]-Livres[[#This Row],[DATE D’EMPRUNT]]), \"\")","v":0}]